[Event "Early-Titled-Tuesday-Blitz-September-26-2023"]
[Site "Chess.com"]
[Date "2023.09.26"]
[Round "4"]
[White "bascheyaro"]
[Black "zimmm36"]
[Result "0-1"]
[WhiteElo "2799"]
[BlackElo "2689"]
[TimeControl "180+1"]
[EndTime "8:39:56 PDT"]
[Termination "zimmm36 won by resignation"]

1. d4 {[%clk 0:03:00.9]} 1... d5 {[%clk 0:02:59.8]} 2. c4 {[%clk 0:03:00.8]}
2... e6 {[%clk 0:03:00.3]} 3. Nc3 {[%clk 0:03:00.3]} 3... Nf6 {[%clk 0:03:00.9]}
4. Bg5 {[%clk 0:02:59.6]} 4... Be7 {[%clk 0:03:00.8]} 5. e3 {[%clk 0:02:59.7]}
5... O-O {[%clk 0:03:00.9]} 6. Qc2 {[%clk 0:02:59.8]} 6... b6 {[%clk 0:02:55.6]}
7. cxd5 {[%clk 0:02:55.4]} 7... exd5 {[%clk 0:02:50.3]} 8. Nf3 {[%clk
0:02:53.9]} 8... Bb7 {[%clk 0:02:49.9]} 9. Bd3 {[%clk 0:02:53.8]} 9... h6 {[%clk
0:02:49]} 10. Bf4 {[%clk 0:02:53]} 10... c5 {[%clk 0:02:48.8]} 11. Nb5 {[%clk
0:02:49.3]} 11... Nc6 {[%clk 0:02:47]} 12. a3 {[%clk 0:02:42.6]} 12... a6 {[%clk
0:02:44.9]} 13. Nc3 {[%clk 0:02:39.1]} 13... c4 {[%clk 0:02:44.3]} 14. Bf5
{[%clk 0:02:38.1]} 14... b5 {[%clk 0:02:44.4]} 15. O-O {[%clk 0:02:36.1]} 15...
Bd6 {[%clk 0:02:36.2]} 16. Ne5 {[%clk 0:02:35.2]} 16... Re8 {[%clk 0:02:32.6]}
17. Nxc6 {[%clk 0:02:09.4]} 17... Bxc6 {[%clk 0:02:33.5]} 18. Bxd6 {[%clk
0:02:04]} 18... Qxd6 {[%clk 0:02:34.4]} 19. b3 {[%clk 0:01:32.6]} 19... g6
{[%clk 0:02:29.3]} 20. Bh3 {[%clk 0:01:19.9]} 20... a5 {[%clk 0:02:21]} 21. a4
{[%clk 0:00:50.4]} 21... b4 {[%clk 0:02:20.1]} 22. Nb5 {[%clk 0:00:50.8]} 22...
Bxb5 {[%clk 0:02:20.3]} 23. axb5 {[%clk 0:00:51.7]} 23... c3 {[%clk 0:02:10.3]}
24. Ra4 {[%clk 0:00:39.5]} 24... Reb8 {[%clk 0:02:09.4]} 25. Rfa1 {[%clk
0:00:35]} 25... Qc7 {[%clk 0:02:01.6]} 26. Qd3 {[%clk 0:00:33.2]} 26... Ne4
{[%clk 0:01:58.2]} 27. g3 {[%clk 0:00:32.4]} 27... Nd2 {[%clk 0:01:53.3]} 28.
Bg2 {[%clk 0:00:25.6]} 28... Qd8 {[%clk 0:01:45.2]} 29. Qc2 {[%clk 0:00:10.3]}
29... Rxb5 {[%clk 0:01:44.5]} 30. Bf1 {[%clk 0:00:10.6]} 30... Rb7 {[%clk
0:01:41.7]} 31. Bd3 {[%clk 0:00:10.6]} 31... Qb6 {[%clk 0:01:35.9]} 32. Kg2
{[%clk 0:00:10.7]} 32... Rba7 {[%clk 0:01:34.1]} 33. Be2 {[%clk 0:00:11]} 33...
Qf6 {[%clk 0:01:29.9]} 34. h4 {[%clk 0:00:10.8]} 34... h5 {[%clk 0:01:29.4]} 35.
Bd3 {[%clk 0:00:11.3]} 35... Kf8 {[%clk 0:01:29.3]} 36. Be2 {[%clk 0:00:11.4]}
36... Ke7 {[%clk 0:01:29.1]} 37. Bd3 {[%clk 0:00:12]} 37... Qf3+ {[%clk
0:01:29.2]} 38. Kg1 {[%clk 0:00:12.2]} 38... Kd7 {[%clk 0:01:27.9]} 39. Bf1
{[%clk 0:00:12.1]} 39... Qe4 {[%clk 0:01:23.6]} 40. Bd3 {[%clk 0:00:11.8]} 40...
Qe6 {[%clk 0:01:19.1]} 41. Kg2 {[%clk 0:00:11.6]} 41... Qf6 {[%clk 0:01:18.1]}
42. Bb5+ {[%clk 0:00:12.1]} 42... Kc7 {[%clk 0:01:16.4]} 43. Be2 {[%clk
0:00:13]} 43... Kb6 {[%clk 0:01:15.9]} 44. R1a2 {[%clk 0:00:13.2]} 44... Qc6
{[%clk 0:01:13.5]} 45. Ra1 {[%clk 0:00:13.4]} 45... f5 {[%clk 0:01:11.5]} 46.
Bd3 {[%clk 0:00:13.2]} 46... Qe6 {[%clk 0:01:09.7]} 47. Be2 {[%clk 0:00:13.7]}
47... Qe4+ {[%clk 0:01:09.4]} 48. Qxe4 {[%clk 0:00:14.1]} 48... fxe4 {[%clk
0:01:08.9]} 49. Bd1 {[%clk 0:00:14.7]} 49... Rg8 {[%clk 0:01:05.7]} 50. Bc2
{[%clk 0:00:14.3]} 50... g5 {[%clk 0:01:05.2]} 51. hxg5 {[%clk 0:00:14.5]} 51...
Rxg5 {[%clk 0:01:05.7]} 52. Rh1 {[%clk 0:00:14.3]} 52... Rf5 {[%clk 0:00:53.8]}
53. Kg1 {[%clk 0:00:13.5]} 53... h4 {[%clk 0:00:52.6]} 54. Rxh4 {[%clk
0:00:12.5]} 54... Nf3+ {[%clk 0:00:52.5]} 55. Kg2 {[%clk 0:00:12.2]} 55... Nxh4+
{[%clk 0:00:53.3]} 56. gxh4 {[%clk 0:00:13.1]} 56... Rg7+ {[%clk 0:00:53.3]} 57.
Kf1 {[%clk 0:00:13.7]} 57... Rgf7 {[%clk 0:00:53.1]} 58. f4 {[%clk 0:00:14.1]}
58... Rh5 {[%clk 0:00:50.8]} 59. Ra2 {[%clk 0:00:12.9]} 59... Rxh4 {[%clk
0:00:50.9]} 60. Bd1 {[%clk 0:00:13.2]} 60... Rh1+ {[%clk 0:00:50.4]} 61. Kg2
{[%clk 0:00:13.9]} 61... Rxd1 {[%clk 0:00:50.2]} 0-1

[Event "Early-Titled-Tuesday-Blitz-September-26-2023"]
[Site "Chess.com"]
[Date "2023.09.26"]
[Round "4"]
[White "TatjanaVasilevich"]
[Black "BeautiFullMindChess"]
[Result "1-0"]
[WhiteElo "2550"]
[BlackElo "2345"]
[TimeControl "180+1"]
[EndTime "8:39:58 PDT"]
[Termination "TatjanaVasilevich won on time"]

1. d4 {[%clk 0:03:00.9]} 1... Nf6 {[%clk 0:02:56.1]} 2. c4 {[%clk 0:02:59.3]}
2... e6 {[%clk 0:02:56.1]} 3. Bg5 {[%clk 0:02:59.4]} 3... d5 {[%clk 0:02:51.8]}
4. cxd5 {[%clk 0:02:56.8]} 4... exd5 {[%clk 0:02:51.3]} 5. Nc3 {[%clk
0:02:57.2]} 5... c6 {[%clk 0:02:50.8]} 6. e3 {[%clk 0:02:57.2]} 6... Be7 {[%clk
0:02:50.8]} 7. Bd3 {[%clk 0:02:57]} 7... O-O {[%clk 0:02:48.2]} 8. Qc2 {[%clk
0:02:57.1]} 8... h6 {[%clk 0:02:48.4]} 9. Bh4 {[%clk 0:02:56.9]} 9... Nbd7
{[%clk 0:02:49.3]} 10. Nge2 {[%clk 0:02:57.3]} 10... Re8 {[%clk 0:02:48.4]} 11.
O-O {[%clk 0:02:57.5]} 11... Ne4 {[%clk 0:02:43.8]} 12. Bxe7 {[%clk 0:02:55.5]}
12... Qxe7 {[%clk 0:02:44.7]} 13. Rfe1 {[%clk 0:02:55.7]} 13... Ndf6 {[%clk
0:02:44.7]} 14. f3 {[%clk 0:02:55]} 14... Nd6 {[%clk 0:02:29]} 15. e4 {[%clk
0:02:44.4]} 15... dxe4 {[%clk 0:02:25.4]} 16. fxe4 {[%clk 0:02:44.8]} 16... Ng4
{[%clk 0:02:21.4]} 17. Ng3 {[%clk 0:02:33.2]} 17... Nxh2 {[%clk 0:02:06.2]} 18.
e5 {[%clk 0:02:30.2]} 18... Nb5 {[%clk 0:01:53.9]} 19. Bxb5 {[%clk 0:02:14.2]}
19... cxb5 {[%clk 0:01:51.9]} 20. Qe4 {[%clk 0:02:07.9]} 20... Ng4 {[%clk
0:01:49.9]} 21. Nf5 {[%clk 0:02:04.9]} 21... Bxf5 {[%clk 0:01:47.3]} 22. Qxf5
{[%clk 0:02:05.8]} 22... Qh4 {[%clk 0:01:47.6]} 23. Qf4 {[%clk 0:02:04.9]} 23...
g5 {[%clk 0:01:44.6]} 24. Qf3 {[%clk 0:02:02.5]} 24... Qh2+ {[%clk 0:01:43.5]}
25. Kf1 {[%clk 0:02:02.3]} 25... Qh4 {[%clk 0:01:35.6]} 26. Kg1 {[%clk
0:01:46.5]} 26... Rad8 {[%clk 0:01:29.5]} 27. Rad1 {[%clk 0:01:46]} 27... Rxd4
{[%clk 0:01:21.9]} 28. Ne4 {[%clk 0:01:41.3]} 28... Qh2+ {[%clk 0:01:02.4]} 29.
Kf1 {[%clk 0:01:40]} 29... Rxd1 {[%clk 0:00:48.6]} 30. Rxd1 {[%clk 0:01:39.2]}
30... Qxe5 {[%clk 0:00:25]} 31. Qxg4 {[%clk 0:01:37.9]} 31... Qxe4 {[%clk
0:00:25.1]} 32. Qxe4 {[%clk 0:01:38.4]} 32... Rxe4 {[%clk 0:00:25.9]} 33. Rd7
{[%clk 0:01:38.8]} 33... Rf4+ {[%clk 0:00:18.7]} 34. Ke2 {[%clk 0:01:38.8]}
34... a5 {[%clk 0:00:17.6]} 35. Rxb7 {[%clk 0:01:38.8]} 35... b4 {[%clk
0:00:17.9]} 36. Rb5 {[%clk 0:01:38.8]} 36... Rg4 {[%clk 0:00:17.5]} 37. Kf3
{[%clk 0:01:37.2]} 37... Rf4+ {[%clk 0:00:17.9]} 38. Ke3 {[%clk 0:01:37.7]}
38... a4 {[%clk 0:00:18.5]} 39. Ra5 {[%clk 0:01:35.6]} 39... b3 {[%clk
0:00:17.3]} 40. axb3 {[%clk 0:01:35.6]} 40... axb3 {[%clk 0:00:18.2]} 41. Rb5
{[%clk 0:01:36.1]} 41... Rg4 {[%clk 0:00:18.3]} 42. Kf3 {[%clk 0:01:35.7]} 42...
Rf4+ {[%clk 0:00:18.7]} 43. Kg3 {[%clk 0:01:36.1]} 43... Rc4 {[%clk 0:00:18.2]}
44. Rxb3 {[%clk 0:01:36.3]} 44... Rc2 {[%clk 0:00:19.1]} 45. Kf3 {[%clk
0:01:36.1]} 45... Kg7 {[%clk 0:00:20]} 46. Rb6 {[%clk 0:01:36.3]} 46... f6
{[%clk 0:00:19.9]} 47. b4 {[%clk 0:01:34.3]} 47... Kg6 {[%clk 0:00:20.8]} 48. g4
{[%clk 0:01:34.5]} 48... Rb2 {[%clk 0:00:21.1]} 49. b5 {[%clk 0:01:34.8]} 49...
Rb3+ {[%clk 0:00:21.3]} 50. Kg2 {[%clk 0:01:34.5]} 50... h5 {[%clk 0:00:22.2]}
51. gxh5+ {[%clk 0:01:32.7]} 51... Kf5 {[%clk 0:00:23.1]} 52. Rb8 {[%clk
0:01:30.7]} 52... g4 {[%clk 0:00:22.7]} 53. b6 {[%clk 0:01:27.2]} 53... Kg5
{[%clk 0:00:23]} 54. b7 {[%clk 0:01:27]} 54... Kf4 {[%clk 0:00:18.8]} 55. h6
{[%clk 0:01:25.3]} 55... Rb2+ {[%clk 0:00:18]} 56. Kf1 {[%clk 0:01:25.9]} 56...
Kf3 {[%clk 0:00:18.5]} 57. Ke1 {[%clk 0:01:26.4]} 57... g3 {[%clk 0:00:19]} 58.
h7 {[%clk 0:01:23.2]} 58... g2 {[%clk 0:00:18.5]} 59. Rg8 {[%clk 0:01:23.3]}
59... Rxb7 {[%clk 0:00:18.2]} 60. h8=Q {[%clk 0:01:21.8]} 60... Rb1+ {[%clk
0:00:19.1]} 61. Kd2 {[%clk 0:01:22.1]} 61... g1=Q {[%clk 0:00:20]} 62. Rxg1
{[%clk 0:01:22.1]} 62... Rxg1 {[%clk 0:00:20.9]} 63. Qxf6+ {[%clk 0:01:22.5]}
63... Kg2 {[%clk 0:00:21.1]} 64. Ke2 {[%clk 0:01:22.4]} 64... Kh1 {[%clk
0:00:22]} 65. Qh4+ {[%clk 0:01:22.2]} 65... Kg2 {[%clk 0:00:21.9]} 66. Qh5
{[%clk 0:01:21.1]} 66... Rh1 {[%clk 0:00:21.1]} 67. Qg4+ {[%clk 0:01:21.4]}
67... Kh2 {[%clk 0:00:20.9]} 68. Kf2 {[%clk 0:01:21.9]} 1-0

[Event "Early-Titled-Tuesday-Blitz-September-26-2023"]
[Site "Chess.com"]
[Date "2023.09.26"]
[Round "4"]
[White "Eloist"]
[Black "Mihajlovskij"]
[Result "1-0"]
[WhiteElo "2496"]
[BlackElo "2284"]
[TimeControl "180+1"]
[EndTime "8:39:59 PDT"]
[Termination "Eloist won by resignation"]

1. e4 {[%clk 0:03:00.9]} 1... d5 {[%clk 0:02:58.9]} 2. exd5 {[%clk 0:03:00.6]}
2... Qxd5 {[%clk 0:02:59]} 3. Nc3 {[%clk 0:03:00.8]} 3... Qe5+ {[%clk
0:02:59.3]} 4. Be2 {[%clk 0:02:59.7]} 4... Bg4 {[%clk 0:02:57.7]} 5. d4 {[%clk
0:02:59.2]} 5... Bxe2 {[%clk 0:02:58]} 6. Ngxe2 {[%clk 0:02:59.1]} 6... Qa5
{[%clk 0:02:58.6]} 7. O-O {[%clk 0:02:57.4]} 7... Nf6 {[%clk 0:02:59]} 8. d5
{[%clk 0:02:50.5]} 8... c6 {[%clk 0:02:54.6]} 9. Nf4 {[%clk 0:02:45]} 9... cxd5
{[%clk 0:02:53.7]} 10. Ncxd5 {[%clk 0:02:41.9]} 10... Nxd5 {[%clk 0:02:49.3]}
11. Qxd5 {[%clk 0:02:40.2]} 11... Qxd5 {[%clk 0:02:49]} 12. Nxd5 {[%clk
0:02:39.9]} 12... Na6 {[%clk 0:02:46.5]} 13. Bf4 {[%clk 0:02:22.3]} 13... e6
{[%clk 0:02:45.2]} 14. Rfe1 {[%clk 0:02:19.3]} 14... Rc8 {[%clk 0:02:36.5]} 15.
Be5 {[%clk 0:01:46]} 15... f6 {[%clk 0:02:27]} 16. Bc3 {[%clk 0:01:42.5]} 16...
Kf7 {[%clk 0:02:25.3]} 17. Nf4 {[%clk 0:01:39.7]} 17... e5 {[%clk 0:02:25.1]}
18. Nd5 {[%clk 0:01:37.5]} 18... Bc5 {[%clk 0:02:22.6]} 19. Rad1 {[%clk
0:01:34.9]} 19... Rhd8 {[%clk 0:02:19]} 20. Ne3 {[%clk 0:01:27.1]} 20... Bxe3
{[%clk 0:02:15.7]} 21. fxe3 {[%clk 0:01:26.5]} 21... Nc5 {[%clk 0:02:14.5]} 22.
Bb4 {[%clk 0:01:08.6]} 22... Ne4 {[%clk 0:02:14.3]} 23. c3 {[%clk 0:01:05.1]}
23... b6 {[%clk 0:02:12.1]} 24. Kf1 {[%clk 0:01:02.3]} 24... a5 {[%clk
0:01:56.7]} 25. Ba3 {[%clk 0:01:01]} 25... Nd2+ {[%clk 0:01:54]} 26. Ke2 {[%clk
0:00:59.2]} 26... Nc4 {[%clk 0:01:53.5]} 27. e4 {[%clk 0:00:36]} 27... Ke6
{[%clk 0:01:39.1]} 28. Rd3 {[%clk 0:00:24.6]} 28... Rxd3 {[%clk 0:01:29.6]} 29.
Kxd3 {[%clk 0:00:24.2]} 29... b5 {[%clk 0:01:16.1]} 30. Re2 {[%clk 0:00:14.9]}
30... g6 {[%clk 0:01:03.9]} 31. Rf2 {[%clk 0:00:14.9]} 31... f5 {[%clk
0:01:03.2]} 32. g3 {[%clk 0:00:14.3]} 32... Rd8+ {[%clk 0:01:00.4]} 33. Kc2
{[%clk 0:00:12.8]} 33... fxe4 {[%clk 0:01:00.1]} 34. Bc5 {[%clk 0:00:10.9]}
34... Rc8 {[%clk 0:00:55.8]} 35. Ba7 {[%clk 0:00:09.9]} 35... Rc7 {[%clk
0:00:55.4]} 36. Bb8 {[%clk 0:00:10.1]} 36... Rc8 {[%clk 0:00:49.2]} 37. Ba7
{[%clk 0:00:08.9]} 37... Ne3+ {[%clk 0:00:39.2]} 38. Bxe3 {[%clk 0:00:07.7]}
38... b4 {[%clk 0:00:37.9]} 39. Rd2 {[%clk 0:00:07.2]} 39... bxc3 {[%clk
0:00:38.2]} 40. bxc3 {[%clk 0:00:08.1]} 40... Rf8 {[%clk 0:00:37.6]} 41. c4
{[%clk 0:00:07.9]} 41... Rf3 {[%clk 0:00:36.5]} 42. Bb6 {[%clk 0:00:08]} 42...
a4 {[%clk 0:00:32.1]} 43. c5 {[%clk 0:00:08]} 43... Ra3 {[%clk 0:00:32.3]} 44.
Kb2 {[%clk 0:00:07.5]} 44... e3 {[%clk 0:00:31]} 45. Re2 {[%clk 0:00:05.8]}
45... Rd3 {[%clk 0:00:31.3]} 46. c6 {[%clk 0:00:05.9]} 46... Kd6 {[%clk
0:00:28.8]} 47. Rc2 {[%clk 0:00:05.6]} 47... e2 {[%clk 0:00:25.5]} 48. Bf2
{[%clk 0:00:05.4]} 48... Kc7 {[%clk 0:00:23.4]} 49. Be1 {[%clk 0:00:05.5]} 49...
Rd2 {[%clk 0:00:22.2]} 50. Bxd2 {[%clk 0:00:05.5]} 1-0

[Event "Early-Titled-Tuesday-Blitz-September-26-2023"]
[Site "Chess.com"]
[Date "2023.09.26"]
[Round "4"]
[White "Fy_Rakotomaharo"]
[Black "m_ezat"]
[Result "1-0"]
[WhiteElo "2715"]
[BlackElo "2535"]
[TimeControl "180+1"]
[EndTime "8:40:00 PDT"]
[Termination "Fy_Rakotomaharo won by resignation"]

1. Nf3 {[%clk 0:03:00.9]} 1... Nf6 {[%clk 0:02:59.3]} 2. b3 {[%clk 0:02:59.5]}
2... g6 {[%clk 0:02:58.6]} 3. Bb2 {[%clk 0:02:59.9]} 3... Bg7 {[%clk 0:02:58.8]}
4. g3 {[%clk 0:02:57.9]} 4... O-O {[%clk 0:02:58.8]} 5. Bg2 {[%clk 0:02:58.4]}
5... d6 {[%clk 0:02:56.5]} 6. d4 {[%clk 0:02:57.7]} 6... e5 {[%clk 0:02:55.8]}
7. dxe5 {[%clk 0:02:56.6]} 7... Nfd7 {[%clk 0:02:56]} 8. O-O {[%clk 0:02:53.9]}
8... Nc6 {[%clk 0:02:55.9]} 9. Nbd2 {[%clk 0:02:50.2]} 9... a5 {[%clk
0:02:54.2]} 10. Nc4 {[%clk 0:02:46.5]} 10... Ndxe5 {[%clk 0:02:47.4]} 11. Nfxe5
{[%clk 0:02:46.3]} 11... Nxe5 {[%clk 0:02:17]} 12. Nxe5 {[%clk 0:02:45.6]} 12...
dxe5 {[%clk 0:02:05.5]} 13. Qxd8 {[%clk 0:02:43.2]} 13... Rxd8 {[%clk
0:02:04.6]} 14. Rad1 {[%clk 0:02:42.6]} 14... Re8 {[%clk 0:02:02.3]} 15. a4
{[%clk 0:02:38.7]} 15... c6 {[%clk 0:01:57.6]} 16. Rd2 {[%clk 0:02:30.6]} 16...
Bf5 {[%clk 0:01:54.9]} 17. Rfd1 {[%clk 0:02:29.7]} 17... h5 {[%clk 0:01:53.9]}
18. h3 {[%clk 0:02:07]} 18... Bh6 {[%clk 0:01:45.1]} 19. e3 {[%clk 0:02:06.5]}
19... Bf8 {[%clk 0:01:44.6]} 20. Bc3 {[%clk 0:02:02.2]} 20... Bb4 {[%clk
0:01:40]} 21. Bxb4 {[%clk 0:02:00.3]} 21... axb4 {[%clk 0:01:39.6]} 22. e4
{[%clk 0:01:41.7]} 22... Be6 {[%clk 0:01:38.5]} 23. f4 {[%clk 0:01:42.3]} 23...
Ra5 {[%clk 0:01:20.6]} 24. Kf2 {[%clk 0:01:29.7]} 24... Rc5 {[%clk 0:01:19.8]}
25. fxe5 {[%clk 0:01:23.5]} 25... Rxe5 {[%clk 0:01:16.6]} 26. Rd4 {[%clk
0:01:23.3]} 26... c5 {[%clk 0:01:05.4]} 27. Rd8 {[%clk 0:01:23]} 27... Kf8
{[%clk 0:01:04.8]} 28. Ke3 {[%clk 0:01:15.7]} 28... c4 {[%clk 0:00:50.8]} 29.
Rxe8+ {[%clk 0:01:15.8]} 29... Kxe8 {[%clk 0:00:50.2]} 30. bxc4 {[%clk
0:01:16.7]} 30... Rc5 {[%clk 0:00:47.9]} 31. Bf1 {[%clk 0:01:12.7]} 31... Bd7
{[%clk 0:00:33.9]} 32. Rb1 {[%clk 0:01:04.8]} 32... Bxa4 {[%clk 0:00:29.5]} 33.
Rxb4 {[%clk 0:01:04.9]} 33... Bc6 {[%clk 0:00:30.1]} 34. Kd4 {[%clk 0:01:00.6]}
34... Rg5 {[%clk 0:00:29.8]} 35. Rb3 {[%clk 0:01:00]} 35... Ke7 {[%clk
0:00:29.2]} 36. c5 {[%clk 0:00:54.6]} 36... f5 {[%clk 0:00:26.5]} 37. exf5
{[%clk 0:00:49.4]} 37... Rxf5 {[%clk 0:00:26]} 38. Re3+ {[%clk 0:00:49.5]} 38...
Kf6 {[%clk 0:00:24.7]} 39. Bc4 {[%clk 0:00:50]} 39... Rf2 {[%clk 0:00:23.8]} 40.
Re6+ {[%clk 0:00:39.4]} 40... Kg7 {[%clk 0:00:23.2]} 41. Bd3 {[%clk 0:00:35.9]}
41... Rf6 {[%clk 0:00:02.8]} 42. Rxf6 {[%clk 0:00:31.9]} 42... Kxf6 {[%clk
0:00:03.7]} 43. Be4 {[%clk 0:00:32.4]} 43... Ke6 {[%clk 0:00:03.7]} 44. Bxg6
{[%clk 0:00:29.3]} 44... h4 {[%clk 0:00:03.1]} 45. gxh4 {[%clk 0:00:29]} 45...
Bg2 {[%clk 0:00:03.2]} 46. Be4 {[%clk 0:00:27.8]} 46... Bxh3 {[%clk 0:00:04.1]}
47. Bxb7 {[%clk 0:00:27.7]} 47... Bf5 {[%clk 0:00:04.3]} 48. Bc8+ {[%clk
0:00:27.7]} 1-0

[Event "Early-Titled-Tuesday-Blitz-September-26-2023"]
[Site "Chess.com"]
[Date "2023.09.26"]
[Round "4"]
[White "GMaka"]
[Black "Aswathchess"]
[Result "1-0"]
[WhiteElo "2421"]
[BlackElo "2586"]
[TimeControl "180+1"]
[EndTime "8:40:02 PDT"]
[Termination "GMaka won by resignation"]

1. d4 {[%clk 0:03:00.9]} 1... Nf6 {[%clk 0:02:59.7]} 2. Bg5 {[%clk 0:03:00.2]}
2... Ne4 {[%clk 0:02:58.4]} 3. Bf4 {[%clk 0:03:00.4]} 3... d5 {[%clk 0:02:58.4]}
4. f3 {[%clk 0:02:57.4]} 4... Nf6 {[%clk 0:02:58.5]} 5. Nc3 {[%clk 0:02:58]}
5... Bf5 {[%clk 0:02:57.1]} 6. g4 {[%clk 0:02:57.6]} 6... Bg6 {[%clk 0:02:56.3]}
7. h4 {[%clk 0:02:58.1]} 7... h6 {[%clk 0:02:54.6]} 8. e3 {[%clk 0:02:56.6]}
8... e6 {[%clk 0:02:54.2]} 9. Bd3 {[%clk 0:02:51]} 9... Bxd3 {[%clk 0:02:53.4]}
10. cxd3 {[%clk 0:02:51.1]} 10... Bd6 {[%clk 0:02:53.3]} 11. Nge2 {[%clk
0:02:50.3]} 11... c6 {[%clk 0:02:45.7]} 12. Kf2 {[%clk 0:02:45.2]} 12... Bxf4
{[%clk 0:02:43.3]} 13. Nxf4 {[%clk 0:02:45.1]} 13... Qe7 {[%clk 0:02:41.9]} 14.
g5 {[%clk 0:02:45.2]} 14... Nfd7 {[%clk 0:02:40.9]} 15. g6 {[%clk 0:02:35.2]}
15... e5 {[%clk 0:02:37.8]} 16. gxf7+ {[%clk 0:02:34.2]} 16... Qxf7 {[%clk
0:02:38.1]} 17. dxe5 {[%clk 0:02:32.9]} 17... Nxe5 {[%clk 0:02:39]} 18. d4
{[%clk 0:02:31.1]} 18... Nc4 {[%clk 0:02:38.4]} 19. b3 {[%clk 0:02:25]} 19...
Nd6 {[%clk 0:02:37.5]} 20. Qd3 {[%clk 0:02:25.6]} 20... Nd7 {[%clk 0:02:23.1]}
21. Rhg1 {[%clk 0:01:58.7]} 21... O-O-O {[%clk 0:02:19.6]} 22. Qg6 {[%clk
0:01:56]} 22... Qe7 {[%clk 0:02:19.2]} 23. Qe6 {[%clk 0:01:55.5]} 23... Qxh4+
{[%clk 0:02:18.4]} 24. Rg3 {[%clk 0:01:40.4]} 24... Qf6 {[%clk 0:01:47]} 25. Rg6
{[%clk 0:01:33.6]} 25... Qh4+ {[%clk 0:01:40.5]} 26. Kg2 {[%clk 0:01:24.5]}
26... Ne8 {[%clk 0:01:36.9]} 27. Rh1 {[%clk 0:01:23.2]} 27... Qf6 {[%clk
0:01:15.9]} 28. Rxf6 {[%clk 0:01:21]} 28... Nxf6 {[%clk 0:01:16.8]} 29. Qf5
{[%clk 0:01:09.6]} 29... Rde8 {[%clk 0:01:15.7]} 30. Ng6 {[%clk 0:01:07.2]}
30... Rhg8 {[%clk 0:01:14.7]} 31. e4 {[%clk 0:01:05.9]} 31... dxe4 {[%clk
0:01:09.1]} 32. Nxe4 {[%clk 0:01:06.8]} 32... Kd8 {[%clk 0:01:03.3]} 33. Nxf6
{[%clk 0:00:56.3]} 33... Nxf6 {[%clk 0:01:04.2]} 34. Kf2 {[%clk 0:00:54.8]}
34... Kc7 {[%clk 0:00:57.1]} 35. Re1 {[%clk 0:00:54.5]} 35... Rxe1 {[%clk
0:00:54.3]} 36. Kxe1 {[%clk 0:00:55.4]} 36... Rd8 {[%clk 0:00:54.7]} 37. Qe5+
{[%clk 0:00:51.6]} 37... Kb6 {[%clk 0:00:55]} 38. Qc5+ {[%clk 0:00:50.2]} 38...
Kc7 {[%clk 0:00:54.8]} 39. Qxa7 {[%clk 0:00:45.3]} 39... Rd5 {[%clk 0:00:50.4]}
40. Nf4 {[%clk 0:00:39.4]} 40... Rd6 {[%clk 0:00:44]} 41. Qc5 {[%clk 0:00:37]}
41... Nd7 {[%clk 0:00:42.9]} 42. Qh5 {[%clk 0:00:30.5]} 42... Rf6 {[%clk
0:00:40.2]} 43. Ng6 {[%clk 0:00:26.7]} 43... Re6+ {[%clk 0:00:38.3]} 44. Ne5
{[%clk 0:00:26.3]} 44... c5 {[%clk 0:00:32.8]} 45. Qf7 {[%clk 0:00:25.4]} 45...
Rd6 {[%clk 0:00:28.8]} 46. dxc5 {[%clk 0:00:25]} 46... Rd5 {[%clk 0:00:29.3]}
47. Nxd7 {[%clk 0:00:25.4]} 47... Rxd7 {[%clk 0:00:30.2]} 48. Qf4+ {[%clk
0:00:24.9]} 48... Kc6 {[%clk 0:00:30.1]} 49. Qc4 {[%clk 0:00:24.4]} 49... Rd5
{[%clk 0:00:29.5]} 50. b4 {[%clk 0:00:24.9]} 50... Re5+ {[%clk 0:00:28.9]} 51.
Kf2 {[%clk 0:00:24.9]} 51... Re7 {[%clk 0:00:28.6]} 52. b5+ {[%clk 0:00:25.1]}
52... Kc7 {[%clk 0:00:28.8]} 53. Qd5 {[%clk 0:00:25.7]} 53... Rd7 {[%clk
0:00:28.2]} 54. b6+ {[%clk 0:00:23.7]} 54... Kd8 {[%clk 0:00:27.5]} 55. Qg8+
{[%clk 0:00:23.7]} 1-0

[Event "Early-Titled-Tuesday-Blitz-September-26-2023"]
[Site "Chess.com"]
[Date "2023.09.26"]
[Round "4"]
[White "Let_it_be_1"]
[Black "ajedrezhoy"]
[Result "0-1"]
[WhiteElo "2601"]
[BlackElo "2394"]
[TimeControl "180+1"]
[EndTime "8:40:04 PDT"]
[Termination "ajedrezhoy won by resignation"]

1. e4 {[%clk 0:03:00.9]} 1... Nf6 {[%clk 0:02:59.3]} 2. e5 {[%clk 0:03:00.9]}
2... Nd5 {[%clk 0:02:59.1]} 3. d4 {[%clk 0:03:01.6]} 3... d6 {[%clk 0:02:59.1]}
4. Nf3 {[%clk 0:03:01.7]} 4... g6 {[%clk 0:02:59.1]} 5. Bc4 {[%clk 0:03:01.4]}
5... Nb6 {[%clk 0:02:58.8]} 6. Bb3 {[%clk 0:03:01.7]} 6... Bg7 {[%clk
0:02:59.3]} 7. O-O {[%clk 0:03:01.8]} 7... O-O {[%clk 0:02:58.8]} 8. c3 {[%clk
0:03:01.8]} 8... dxe5 {[%clk 0:02:53.9]} 9. Nxe5 {[%clk 0:03:01.6]} 9... N8d7
{[%clk 0:02:52.8]} 10. Nxd7 {[%clk 0:03:00.9]} 10... Bxd7 {[%clk 0:02:50.9]} 11.
Re1 {[%clk 0:03:00.7]} 11... a5 {[%clk 0:02:43.5]} 12. a4 {[%clk 0:02:56.9]}
12... Bc6 {[%clk 0:02:35.4]} 13. Nd2 {[%clk 0:02:56.2]} 13... Bd5 {[%clk
0:02:27.7]} 14. Ne4 {[%clk 0:02:45.6]} 14... Bxb3 {[%clk 0:02:25.1]} 15. Qxb3
{[%clk 0:02:45.4]} 15... Qd5 {[%clk 0:02:00]} 16. Qc2 {[%clk 0:02:44.9]} 16...
Qf5 {[%clk 0:01:52.8]} 17. Qe2 {[%clk 0:02:40.1]} 17... Rfe8 {[%clk 0:01:46.6]}
18. Nc5 {[%clk 0:02:28.7]} 18... Qd5 {[%clk 0:01:41.8]} 19. Nd3 {[%clk
0:02:15.8]} 19... Qc4 {[%clk 0:01:32.3]} 20. Bf4 {[%clk 0:02:10]} 20... Rac8
{[%clk 0:01:23]} 21. Qc2 {[%clk 0:02:04.1]} 21... Nd5 {[%clk 0:01:20.2]} 22. Bg3
{[%clk 0:01:57.5]} 22... b6 {[%clk 0:01:17.7]} 23. h4 {[%clk 0:01:48.7]} 23...
h5 {[%clk 0:01:15]} 24. Ne5 {[%clk 0:01:47]} 24... Qa6 {[%clk 0:00:49.1]} 25.
Nxg6 {[%clk 0:01:17.4]} 25... fxg6 {[%clk 0:00:48]} 26. Qxg6 {[%clk 0:01:17.3]}
26... Nf6 {[%clk 0:00:45.2]} 27. Re5 {[%clk 0:01:15.2]} 27... Qc4 {[%clk
0:00:42.7]} 28. Rae1 {[%clk 0:01:06]} 28... Qf7 {[%clk 0:00:42.4]} 29. Qg5
{[%clk 0:00:57.9]} 29... c5 {[%clk 0:00:38.3]} 30. d5 {[%clk 0:00:48.3]} 30...
Rcd8 {[%clk 0:00:33.1]} 31. c4 {[%clk 0:00:47.7]} 31... Nh7 {[%clk 0:00:32.4]}
32. Qxh5 {[%clk 0:00:29.8]} 32... Qxh5 {[%clk 0:00:17.2]} 33. Rxh5 {[%clk
0:00:29.8]} 33... Bxb2 {[%clk 0:00:17.2]} 34. Bc7 {[%clk 0:00:29.9]} 34... Rd7
{[%clk 0:00:16.1]} 35. Bxb6 {[%clk 0:00:29.5]} 35... Bc3 {[%clk 0:00:16.4]} 36.
Bxc5 {[%clk 0:00:27.5]} 36... Bxe1 {[%clk 0:00:16]} 37. Bd4 {[%clk 0:00:19.5]}
37... Nf6 {[%clk 0:00:16.1]} 38. Rg5+ {[%clk 0:00:19.4]} 38... Kf7 {[%clk
0:00:16.3]} 39. Rf5 {[%clk 0:00:19.4]} 39... Bb4 {[%clk 0:00:16.1]} 40. g4
{[%clk 0:00:19.1]} 40... Kg6 {[%clk 0:00:15.3]} 41. h5+ {[%clk 0:00:19.5]} 41...
Kh7 {[%clk 0:00:15.1]} 42. f3 {[%clk 0:00:17]} 42... Rg8 {[%clk 0:00:15]} 43.
Kf2 {[%clk 0:00:16.6]} 43... Rc7 {[%clk 0:00:14.7]} 44. c5 {[%clk 0:00:11]}
44... Bxc5 {[%clk 0:00:14.2]} 45. Bxc5 {[%clk 0:00:10.5]} 45... Rxc5 {[%clk
0:00:14.4]} 46. g5 {[%clk 0:00:10.9]} 46... Rxd5 {[%clk 0:00:14.1]} 47. Rxd5
{[%clk 0:00:09.5]} 47... Nxd5 {[%clk 0:00:14.2]} 48. g6+ {[%clk 0:00:10]} 48...
Kh6 {[%clk 0:00:14]} 0-1